bitfinex/quotes_ETHUSD_20241207
["timestamp","ask_amount","ask_price","bid_price","bid_amount"]
[1733557411747,1.04997251,3989.6,3989.1,0.55]
[1733557411946,2.17073835,3989.5,3989.1,0.55]
[1733557412158,1.04997251,3989.6,3989.1,0.55]
[1733557412387,2.17071632,3989.5,3989.1,0.55]
[1733557412564,1.04997251,3989.6,3989.1,0.55]
[1733557412767,2.17074861,3989.5,3989.1,0.55]
[1733557412966,0.86829944,3989.4,3989.1,0.55]
[1733557413131,1.04997251,3989.6,3989.1,0.55]
[1733557413333,0.86831199,3989.5,3989.1,0.55]
[1733557413538,1.04997251,3989.6,3989.1,0.55]
[1733557413837,0.86829838,3989.5,3989.1,0.55]
[1733557414027,1.04997251,3989.7,3989.1,0.55]
[1733557414232,3.22069754,3989.6,3989.1,0.55]
[1733557414430,2.17072503,3989.5,3989.1,0.55]
[1733557414636,1.04997251,3989.6,3989.1,0.55]
[1733557414853,0.8682934,3989.5,3989.1,0.55]
[1733557415070,1.04997251,3989.6,3989.1,0.55]
[1733557415236,0.86829342,3989.5,3989.1,0.55]
[1733557415561,1.04997251,3989.6,3989.1,0.55]
[1733557415763,0.86831283,3989.5,3989.1,0.55]
[1733557415961,1.04997251,3989.6,3989.1,0.55]
[1733557416188,2.17083632,3989.5,3989.1,0.55]
[1733557416355,1.04997251,3989.6,3989.1,0.55]
[1733557416694,1.04997251,3989.7,3989.2,1.75473]
[1733557416897,0.86831092,3989.6,3989.3,0.55]
[1733557417183,1.04997251,3989.7,3989.3,0.55]
[1733557417389,0.86830271,3989.6,3989.2,0.55]
[1733557417683,1.04997251,3989.8,3989.4,0.55]
[1733557417980,2.17075845,3989.7,3989.4,0.55]
[1733557418183,0.86830338,3989.6,3989.4,0.55]
[1733557418352,1.04997251,3989.8,3989.4,0.55]
[1733557418684,2.17075621,3989.7,3989.4,0.55]
[1733557418870,1.04997251,3989.8,3989.4,0.55]
[1733557419051,0.86829821,3989.7,3989.4,0.55]
[1733557419249,1.04997251,3989.8,3989.4,0.55]
[1733557419446,0.86828482,3989.7,3989.2,0.55]
[1733557419689,1.04997251,3989.8,3989.3,2.30467]
[1733557420000,0.86829098,3989.7,3989.3,2.30467]
[1733557420147,1.04997251,3989.8,3989.3,2.30467]
[1733557420345,0.86829392,3989.7,3989.3,2.30467]
[1733557420569,1.04997251,3989.9,3989.3,2.30467]
[1733557420785,2.17068053,3989.8,3989.3,2.30467]
[1733557420988,0.86827221,3989.7,3989.3,2.30467]
[1733557421145,1.04997251,3989.9,3989.3,2.30467]
[1733557421345,0.8682769,3989.8,3989.3,2.30467]
[1733557421655,0.03754066,3989.6,3989.3,2.30467]
[1733557421990,1.04997251,3989.9,3989.3,2.30467]
[1733557422155,0.03752018,3989.5,3989.3,2.30467]
[1733557422351,1.04997251,3990.0,3989.3,2.6467787]
[1733557422551,0.0374997,3989.4,3989.3,2.30467]
[1733557422776,1.04997251,3990.0,3989.3,2.30467]
[1733557422979,0.0374997,3989.4,3989.3,2.30467]
[1733557423194,1.04997251,3990.0,3989.3,2.30467]
[1733557423494,1.04997251,3990.0,3989.0,0.8054]
[1733557423495,1.04997251,3989.8,3989.1,2.30477]
[1733557423698,0.86821964,3989.7,3989.1,2.30477]
[1733557423900,0.6892,3989.6,3989.0,0.8054]
[1733557424100,0.86828562,3989.5,3989.0,0.8054]
[1733557424307,0.03761184,3989.5,3989.0,0.8054]
[1733557424490,0.03761184,3989.5,3989.0,2.56021]
[1733557424805,1.04997251,3989.8,3989.0,2.56021]
[1733557425009,0.03759136,3989.4,3989.0,2.56021]
[1733557425191,1.04997251,3989.8,3989.0,2.816231]
[1733557425507,3.22060129,3989.7,3989.1,0.55]
[1733557425713,0.86825151,3989.6,3989.1,0.55]
[1733557425869,1.08762531,3989.7,3989.1,0.55]
[1733557426068,0.86826675,3989.6,3989.1,0.55]
[1733557426303,0.03753671,3989.5,3989.1,0.55]
[1733557426901,1.04997251,3989.7,3989.1,0.55]
[1733557427062,0.03743405,3989.4,3989.1,0.55]
[1733557427265,1.04997251,3989.7,3989.1,0.55]
[1733557427466,2.2082005,3989.6,3989.1,0.55]
[1733557427661,0.03746794,3989.6,3989.1,0.55]
[1733557429518,0.86838877,3989.5,3989.1,0.55]
[1733557429673,0.03746794,3989.6,3989.1,0.55]
[1733557430004,0.86839125,3989.5,3989.1,0.55]
[1733557430204,0.03746794,3989.6,3989.1,0.55]
[1733557430405,0.03742698,3989.4,3989.1,0.55]
[1733557430606,0.03744746,3989.5,3988.9,0.55]
[1733557430904,0.0374065,3989.3,3988.9,0.55]
[1733557431068,0.03742698,3989.4,3988.9,0.55]
[1733557431275,2.17119838,3989.3,3988.9,0.55]
[1733557431517,0.90590025,3989.2,3988.9,0.55]
[1733557431679,0.03738248,3989.2,3988.6,0.55]
[1733557431879,0.03738248,3989.2,3988.6,2.618511]
[1733557432123,1.73917251,3989.4,3988.6,2.618511]
[1733557432278,0.03730558,3989.1,3988.5,0.8302]
[1733557432478,2.44398,3989.1,3988.2,0.8302]
[1733557432679,4.34462516,3989.0,3987.9,2.58546]
[1733557432915,3.22134132,3988.9,3987.9,2.58546]
[1733557433114,1.08605164,3988.4,3987.9,0.8302]
[1733557433316,0.6892,3988.6,3987.9,0.8302]
[1733557433480,0.03700766,3988.3,3987.9,0.8302]
[1733557433881,1.04997251,3988.5,3987.9,0.8302]
[1733557434116,2.20821779,3988.4,3987.9,0.8302]
[1733557434322,0.03702816,3988.4,3987.9,0.8302]
[1733557434526,0.03702816,3988.4,3987.6,1.75542]
[1733557434690,0.86823448,3988.3,3987.6,2.58562]
[1733557434883,0.03698717,3988.2,3987.6,2.58562]
[1733557435084,0.6892,3988.6,3987.6,2.58562]
[1733557435085,1.04997251,3988.4,3987.6,2.58562]
[1733557435285,0.90496341,3988.3,3987.6,2.58562]
[1733557435484,0.03670786,3988.3,3987.6,2.58562]
[1733557435725,1.04997251,3988.5,3987.6,2.58562]
[1733557436020,2.16999115,3988.4,3987.7,0.55]
[1733557436178,0.90442216,3988.3,3987.7,0.55]
[1733557436382,0.0364257,3988.3,3987.7,0.55]
[1733557436785,1.83908178,3988.5,3987.7,0.55]
[1733557437020,0.0364052,3988.2,3987.7,0.55]
[1733557437222,1.83908178,3988.5,3987.7,0.55]
[1733557437529,1.83908178,3988.5,3987.3,0.7669]
[1733557437530,0.6892,3988.0,3987.3,0.7669]
[1733557437825,0.6892,3988.0,3987.0,0.7669]
[1733557438182,0.03629785,3987.9,3987.0,0.7669]
[1733557438819,0.03629785,3987.9,3987.1,0.55]
[1733557439029,0.03629785,3987.9,3987.0,0.7669]
[1733557440429,0.03629785,3987.9,3987.1,0.55]
[1733557440727,1.08605164,3987.8,3987.1,0.55]
[1733557441099,0.03615099,3987.7,3987.3,0.55]
[1733557441394,0.03613049,3987.6,3987.5,0.55]
[1733557441734,0.03613049,3987.6,3986.7,0.7669]
[1733557441735,0.6892,3987.6,3986.7,0.7669]
[1733557441945,0.72512232,3987.6,3986.8,0.07835306]
[1733557442098,0.72512232,3987.6,3986.9,0.07835306]
[1733557442302,0.94190684,3987.6,3987.0,0.07835306]
[1733557442512,0.94190684,3987.6,3987.1,0.07835306]
[1733557442719,0.94190684,3987.6,3987.2,0.07835306]
[1733557442925,1.7555,3987.5,3986.4,0.7669]
[1733557443127,1.7555,3987.5,3986.5,0.07835362]
[1733557443331,0.6892,3987.3,3986.6,0.07835362]
[1733557443630,0.6892,3987.3,3986.7,0.07835362]
[1733557443631,0.03564623,3987.2,3986.7,0.07835362]
[1733557443805,1.12169787,3987.2,3986.0,0.7669]
[1733557444005,0.6892,3987.1,3986.1,0.07836292]
[1733557444216,0.03560522,3987.0,3986.2,0.07836292]
[1733557444408,0.21669091,3987.0,3986.3,0.07836292]
[1733557444709,0.21669091,3987.0,3986.4,0.07836292]
[1733557445030,0.21669091,3987.0,3986.0,0.7669]
[1733557445199,0.21669091,3987.0,3986.2,0.55]
[1733557445518,3.53101164,3986.9,3985.7,0.7669]
[1733557445720,3.53101164,3986.9,3985.8,0.0783685]
[1733557445954,0.03522886,3986.8,3985.9,0.0783685]
[1733557446259,0.03522886,3986.8,3986.0,0.0783685]
[1733557446407,0.03522886,3986.8,3985.7,0.7669]
[1733557446408,0.6892,3986.7,3985.7,0.7669]
[1733557446606,0.6892,3986.7,3985.8,0.07836978]
[1733557446607,0.03514901,3986.6,3985.8,0.07836978]
[1733557446831,0.03514901,3986.6,3985.9,0.62836978]
[1733557447014,0.03514901,3986.6,3985.7,0.7669]
[1733557447015,0.03514901,3986.6,3985.8,0.55]
[1733557447220,0.03514901,3986.6,3986.0,0.55]
[1733557447537,0.03514901,3986.6,3985.8,0.55]
[1733557447732,0.03514901,3986.6,3986.0,0.55]
[1733557448340,0.03514901,3986.6,3985.8,0.55]
[1733557448541,0.03514901,3986.6,3985.8,2.30622]
[1733557449442,0.03514901,3986.6,3985.8,2.613532]
[1733557451343,0.03514901,3986.6,3986.0,0.55]
[1733557456859,0.03514901,3986.6,3985.8,0.55]
[1733557457025,0.03514901,3986.6,3986.1,0.55]
[1733557458159,0.03514901,3986.6,3986.1,2.30609]
[1733557459362,0.03514901,3986.6,3986.3,0.55]
[1733557459870,0.03514901,3986.6,3986.2,0.55]
[1733557460369,0.03514901,3986.6,3986.4,0.55]
[1733557460965,0.6892,3986.5,3986.4,0.55]
[1733557461168,0.6892,3986.4,3985.3,1.85641]
[1733557461377,0.6892,3986.0,3985.4,0.07837711]
[1733557461534,0.6892,3986.0,3985.5,0.07837711]
[1733557461732,0.03337766,3985.9,3985.5,0.07837711]
[1733557461941,0.03337766,3985.9,3985.3,0.1]
[1733557462169,0.51679615,3985.9,3985.4,0.07838928]
[1733557462381,0.51679615,3985.9,3985.3,0.1]
[1733557462581,0.51679615,3985.9,3985.4,0.07838962]
[1733557462582,0.6892,3985.8,3985.4,0.07838962]
[1733557463072,0.03333662,3985.7,3985.5,0.55]
[1733557463248,0.6892,3985.8,3985.4,0.55]
[1733557463433,0.6892,3985.8,3985.7,0.55]
[1733557463780,0.6892,3985.8,3985.4,0.55]
[1733557463934,0.6892,3985.8,3985.6,0.55]
[1733557464134,0.6892,3985.8,3985.4,0.55]
[1733557464433,0.6892,3985.8,3985.6,0.55]
[1733557464834,0.6892,3985.8,3985.4,0.55]
[1733557465026,0.6892,3985.8,3985.6,0.55]
[1733557465231,0.6892,3985.8,3985.4,0.55]
[1733557465429,0.6892,3985.8,3985.6,0.55]
[1733557465835,0.244535,3985.7,3985.4,0.55]
[1733557466154,0.244535,3985.7,3985.6,0.55]
[1733557466360,0.244535,3985.7,3985.6,0.62839044]
[1733557466670,0.27754312,3985.7,3985.6,0.62839044]
[1733557468072,0.96674312,3985.7,3985.4,0.55]
[1733557468282,0.27229331,3985.6,3985.5,0.6283934]
[1733557468575,0.30528091,3985.6,3985.5,0.6283934]
[1733557469134,0.0329876,3985.6,3985.5,0.6283934]
[1733557475246,0.0329876,3985.6,3985.5,0.62839262]
[1733557475476,0.0329876,3985.6,3985.5,0.07839262]
[1733557475990,0.0329876,3985.6,3985.5,0.62839262]
[1733557485496,0.0329876,3985.6,3985.5,2.38475262]
[1733557485711,0.6892,3986.3,3985.6,2.30631]
[1733557486001,0.0330683,3986.2,3985.8,0.55]
[1733557486213,0.0330683,3986.2,3986.0,0.55]
[1733557486406,2.35024032,3986.6,3986.2,0.55]
[1733557486698,2.35024032,3986.6,3986.0,2.30613]
[1733557486699,1.30026781,3986.6,3986.4,0.55]
[1733557486997,1.30026781,3986.6,3985.8,0.7697]
[1733557486998,1.30026781,3986.6,3986.5,0.62839262]
[1733557487166,2.16705269,3986.6,3986.5,0.62839262]
[1733557487365,0.86676676,3986.6,3986.5,0.62839262]
[1733557487703,1.30065714,3986.7,3986.6,0.55]
[1733557487915,2.27507428,3986.8,3986.6,0.62839262]
[1733557487916,1.22510177,3986.8,3986.6,0.62839262]
[1733557488064,1.22510177,3986.8,3986.7,0.62839262]
[1733557488610,2.09240352,3986.8,3986.7,0.62839262]
[1733557488762,1.22510177,3986.8,3986.7,2.38422262]
[1733557489414,1.22510177,3986.8,3986.7,3.15392262]
[1733557489698,1.30080887,3987.5,3987.1,0.55]
[1733557489904,1.04997251,3987.7,3987.2,0.07839262]
[1733557490085,2.16792955,3987.6,3987.3,0.62839262]
[1733557490263,1.04997251,3987.7,3987.4,0.62839262]
[1733557490463,1.04997251,3988.0,3987.5,0.62834936]
[1733557490663,2.49875008,3987.9,3987.7,0.55]
[1733557490907,0.86693478,3987.8,3987.7,0.55]
[1733557491076,0.86693478,3987.8,3987.5,0.55]
[1733557491314,2.35034264,3988.1,3987.5,0.55]
[1733557491520,0.86690545,3988.0,3987.7,0.55]
[1733557491937,1.04997251,3988.4,3987.9,0.55]
[1733557492133,2.34981297,3988.5,3988.1,0.55]
[1733557492443,2.34981297,3988.5,3987.9,0.55]
[1733557492444,2.34981297,3988.6,3987.8,0.55]
[1733557492646,0.86611852,3988.5,3987.8,0.55]
[1733557493206,0.86611852,3988.5,3987.5,0.55]
[1733557493442,0.86611852,3988.5,3987.4,0.7697]
[1733557493443,1.64611755,3988.5,3987.8,0.55]
[1733557493746,0.77999903,3988.5,3987.8,0.55]
[1733557494254,0.77999903,3988.5,3987.5,0.55]
[1733557494555,0.77999903,3988.5,3987.7,0.55]
[1733557494708,0.77999903,3988.5,3987.5,0.55]
[1733557494913,0.3819012,3988.4,3987.7,0.55]
[1733557495344,0.3819012,3988.4,3987.5,0.55]
[1733557495713,0.3819012,3988.4,3987.5,2.30548]
[1733557495949,0.3819012,3988.4,3987.5,0.55]
[1733557496108,0.77999903,3988.5,3987.7,2.30539]
[1733557496312,0.6892,3988.7,3987.7,2.30539]
[1733557496748,0.03346837,3988.6,3987.7,2.30539]
[1733557497059,0.03346837,3988.6,3987.8,2.30534]
[1733557497222,0.03346837,3988.6,3988.0,1.3322]
[1733557497628,0.03346837,3988.6,3988.2,0.55]
[1733557497938,0.03376935,3988.5,3988.2,0.55]
[1733557498135,0.03376935,3988.5,3988.1,1.75521]
[1733557498136,0.6892,3989.0,3988.3,1.75512]
[1733557498308,0.03389721,3988.9,3988.4,0.55]
[1733557498712,0.6892,3989.4,3988.4,0.55]
[1733557498914,0.27840912,3989.3,3988.4,0.55]
[1733557499354,0.27840912,3989.3,3988.6,0.7822]
[1733557499514,0.03403212,3989.3,3988.7,0.55]
[1733557499936,1.22428162,3989.7,3988.7,2.30494]
[1733557500163,0.03436195,3989.6,3988.7,2.30494]
[1733557501219,0.03436195,3989.6,3988.7,0.55]
[1733557501420,0.19478436,3989.5,3988.7,0.55]
[1733557501852,0.03439514,3989.4,3988.7,0.55]
[1733557502265,2.44368,3989.8,3988.7,0.55]
[1733557502424,0.03437466,3989.3,3988.7,0.55]
[1733557502754,0.03435417,3989.2,3988.7,0.55]
[1733557502965,2.44368,3989.8,3988.7,0.55]
[1733557503121,0.03433369,3989.1,3988.7,0.55]
[1733557503317,2.688048,3989.8,3988.7,0.55]
[1733557503552,1.75457,3989.6,3988.7,0.55]
[1733557503856,0.03441562,3989.5,3988.7,0.55]
[1733557505124,0.6892,3989.4,3988.7,0.55]
[1733557505314,0.27892509,3989.3,3988.7,0.55]
[1733557506257,0.03454409,3989.3,3988.4,0.55]
[1733557506972,0.03454409,3989.3,3988.3,0.55]
[1733557507465,1.75478,3989.1,3988.3,0.55]
[1733557507866,0.03448264,3989.0,3988.3,0.55]
[1733557509949,0.6892,3988.9,3988.3,0.55]
[1733557510132,0.03448264,3989.0,3986.7,1.75583]
[1733557510133,0.03415166,3988.8,3986.9,0.7892]
[1733557510337,0.6892,3988.7,3987.5,0.7892]
[1733557510538,0.6892,3988.7,3987.6,0.07832855]
[1733557510849,0.6892,3988.7,3987.9,1.75526]
[1733557511078,0.6892,3988.7,3988.0,0.07832673]
[1733557511272,0.03396595,3988.6,3988.1,0.07832673]
[1733557511492,0.03396595,3988.6,3988.2,0.55]
[1733557511650,0.03396595,3988.6,3987.9,1.3392]
[1733557511839,0.6892,3988.9,3988.1,0.55]
[1733557512175,0.27832619,3988.8,3988.1,0.55]
[1733557512372,0.27832619,3988.8,3987.9,0.7892]
[1733557512373,0.27832619,3988.8,3988.0,0.55]
[1733557512545,0.27832619,3988.8,3988.2,0.55]
[1733557512872,1.75501,3988.6,3988.2,0.55]
[1733557513245,0.03388192,3988.5,3988.2,0.55]
[1733557513576,1.78893192,3988.5,3988.2,0.55]
[1733557514278,0.03388192,3988.5,3988.2,0.55]
[1733557514461,2.44433,3988.3,3988.2,0.55]
[1733557514667,2.69215119,3988.3,3988.2,0.55]
[1733557514972,1.75549,3987.5,3986.1,0.7892]
[1733557515272,0.03361407,3987.4,3986.2,0.07834283]
[1733557515479,0.03361407,3987.4,3986.3,0.07834283]
[1733557515647,1.75555,3987.4,3986.4,0.07834283]
[1733557515851,0.03359357,3987.3,3986.5,0.07834283]
[1733557516065,0.03359357,3987.3,3986.6,0.07834283]
[1733557516262,0.03359357,3987.3,3986.7,0.07834283]
[1733557516435,0.03359357,3987.3,3986.8,0.07834283]
[1733557516753,0.03359357,3987.3,3987.0,0.55]
[1733557516955,0.03359357,3987.3,3987.2,0.55]
[1733557517153,0.03359357,3987.3,3987.2,0.62836115]
[1733557517351,0.03359357,3987.3,3987.2,0.55]
[1733557517873,0.03359357,3987.3,3987.2,0.62835983]
[1733557518036,0.03359357,3987.3,3987.2,0.55]
[1733557518241,0.03359357,3987.3,3987.2,0.62836028]
[1733557518443,0.03359357,3987.3,3987.2,0.55]
[1733557520336,0.03359357,3987.3,3987.2,0.62836129]
[1733557520543,0.03359357,3987.3,3987.2,0.55]
[1733557520855,1.96807793,3987.3,3987.2,0.55]
[1733557521066,1.78916357,3987.3,3987.2,0.55]
[1733557521258,2.47836357,3987.3,3987.2,0.55]
[1733557524086,1.75575,3986.9,3986.1,0.7892]
[1733557524289,0.03298944,3986.8,3986.2,0.07836853]
[1733557524492,1.75589,3986.6,3986.3,0.07836853]
[1733557524805,0.03292791,3986.5,3986.4,0.07836853]
[1733557525132,0.03292791,3986.5,3985.8,0.07837293]
[1733557525396,1.75589,3986.6,3985.9,0.07837293]
[1733557525596,1.75589,3986.6,3986.0,0.07837293]
[1733557525821,1.75589,3986.6,3986.1,0.62837293]
[1733557525957,1.75589,3986.6,3986.3,0.55]
[1733557526160,0.03292791,3986.5,3986.1,0.55]
[1733557526357,0.03292791,3986.5,3986.3,0.55]
[1733557532732,0.05689791,3986.5,3986.3,0.55]
[1733557533987,0.05689791,3986.5,3986.0,0.55]
[1733557534181,0.6892,3987.0,3986.2,0.55]
[1733557534410,0.05676058,3986.9,3986.4,0.55]
[1733557537627,0.05676058,3986.9,3986.6,0.55]
[1733557541705,0.05676058,3986.9,3986.8,0.55]
[1733557542253,0.05676058,3986.9,3986.8,0.62836669]
[1733557542744,0.30692264,3986.9,3986.8,0.55]
[1733557543234,0.30692264,3986.9,3986.8,0.6283689]
[1733557544015,0.30692264,3986.9,3986.8,0.55]
[1733557544222,2.50171058,3986.9,3986.8,0.55]
[1733557545113,1.7559,3986.6,3985.6,0.55]
[1733557545344,1.04997251,3987.2,3985.7,0.07837714]
[1733557545345,2.50192475,3986.5,3985.7,0.07837714]
[1733557545527,2.50192475,3986.5,3985.5,0.8315]
[1733557545732,1.75597,3986.4,3985.5,0.8315]
[1733557545936,0.05646449,3986.3,3985.5,0.8315]
[1733557546307,0.05646449,3986.3,3985.8,0.07837877]
[1733557546814,0.05646449,3986.3,3985.9,0.07837877]
[1733557547015,0.05646449,3986.3,3986.0,0.07837877]
[1733557547235,0.30662794,3986.3,3986.1,0.62837877]
[1733557547549,0.30662794,3986.3,3986.2,0.62837877]
[1733557548609,0.30662794,3986.3,3986.2,0.55]
[1733557548947,0.30662794,3986.3,3986.2,0.62838221]
[1733557549742,0.05646449,3986.3,3986.2,0.62838221]
[1733557549949,0.6892,3986.5,3986.2,0.62838221]
[1733557550119,0.05628994,3986.4,3986.3,0.62838221]
[1733557550717,2.445,3986.8,3986.3,0.62838221]
[1733557551020,2.445,3986.8,3986.5,0.55]
[1733557551221,0.05636731,3986.7,3986.5,0.55]
[1733557551642,1.27404517,3986.8,3986.5,0.55]
[1733557551848,1.27404517,3986.8,3986.7,0.55]
[1733557552332,0.6892,3987.1,3986.7,0.62837181]
[1733557552533,0.6892,3987.1,3986.9,0.55]
[1733557553120,0.6892,3987.1,3986.3,0.55]
[1733557553636,0.6892,3987.1,3986.4,0.07836928]
[1733557553820,0.6892,3987.1,3986.5,0.07836928]
[1733557554010,0.6892,3987.1,3986.6,0.07836928]
[1733557554211,0.6892,3987.1,3986.7,0.07836928]
[1733557554440,0.6892,3987.1,3986.3,0.55]
[1733557554441,1.19616613,3987.1,3986.8,0.07836928]
[1733557554648,0.86625241,3987.0,3986.9,0.07836928]
[1733557554854,0.86625196,3987.0,3986.9,0.07836928]
[1733557555454,0.86625196,3987.0,3986.9,0.62836928]
[1733557555753,0.6892,3987.1,3986.9,0.62836928]
[1733557555958,1.57495876,3987.4,3985.5,0.12878767]
[1733557555959,1.04997251,3987.3,3987.0,0.62836928]
[1733557556111,2.62493127,3987.9,3987.2,0.55]
[1733557556441,0.86672049,3987.8,3987.4,0.55]
[1733557556642,0.05327729,3987.8,3987.6,0.55]
[1733557556808,0.05327729,3987.8,3987.7,0.62836928]
[1733557557009,1.85667251,3988.0,3987.7,0.62836928]
[1733557557248,3.68944696,3987.9,3987.8,0.07836928]
[1733557557549,3.68944696,3987.9,3987.7,0.55]
[1733557557850,3.68944696,3987.9,3987.8,0.55]
[1733557557851,0.4731274,3987.9,3987.8,0.55]
[1733557558026,1.3401398,3987.9,3987.8,0.62834646]
[1733557558931,0.8670124,3987.9,3987.8,0.62834646]
[1733557559446,0.86765256,3987.9,3987.8,0.62834646]
[1733557560450,2.16945163,3987.9,3987.8,0.62834646]
[1733557560837,3.21942414,3987.9,3987.8,0.62834646]
[1733557561176,2.16945163,3987.9,3987.8,0.62834646]
[1733557561324,3.45558992,3987.9,3987.8,0.62834646]
[1733557561522,5.03054868,3987.9,3987.8,0.55]
[1733557562029,4.50502438,3987.9,3987.8,0.55]
[1733557562675,2.64852741,3987.9,3987.8,0.55]
[1733557563328,3.21852358,3987.9,3987.8,0.55]
[1733557563552,2.16908912,3987.9,3987.8,0.55]
[1733557564322,0.86763565,3987.9,3987.8,0.55]
[1733557565179,2.16872067,3987.9,3987.8,0.55]
[1733557565535,0.86763565,3987.9,3987.8,0.55]
[1733557565752,1.21683854,3987.9,3987.5,0.55]
[1733557566062,2.97530374,3987.8,3987.7,0.55]
[1733557566276,4.0247382,3987.8,3987.7,0.55]
[1733557566489,1.75544,3987.6,3986.4,0.7706]
[1733557566701,1.75544,3987.6,3986.5,0.07835281]
[1733557566852,0.49125426,3987.5,3986.6,0.07835281]
[1733557567053,1.79221318,3987.5,3986.7,0.07835281]
[1733557567248,0.49125426,3987.5,3986.8,0.07835281]
[1733557567484,0.49125426,3987.5,3986.9,0.07835281]
[1733557567693,0.49125426,3987.5,3987.1,0.55]
[1733557567893,0.4597009,3987.4,3987.3,0.55]
[1733557569566,0.4597009,3987.4,3987.3,0.62835417]
[1733557569900,1.30082828,3987.7,3987.3,0.62835417]
[1733557570238,3.92346529,3987.6,3987.3,0.55]
[1733557570364,3.05626828,3987.6,3987.3,0.55]
[1733557570566,1.75544,3987.6,3987.3,0.55]
[1733557571193,1.30082828,3987.7,3987.3,0.55]
[1733557571398,4.39658393,3987.6,3987.3,0.55]
[1733557571602,0.91773303,3987.5,3987.3,0.55]
[1733557571798,0.05061695,3987.5,3987.3,0.55]
[1733557573081,1.3512755,3987.5,3987.3,0.55]
[1733557573397,0.05061695,3987.5,3987.3,0.55]
[1733557573695,0.05061695,3987.5,3986.4,2.52655]
[1733557573696,0.33286836,3987.4,3986.4,0.7706]
[1733557573868,3.42947072,3987.3,3986.5,0.62835631]
[1733557574085,2.61288719,3987.3,3986.7,0.55]
[1733557574270,0.86721586,3987.2,3986.9,0.55]
[1733557574471,0.44075679,3987.1,3986.9,0.55]
[1733557574677,0.49119164,3987.1,3986.9,0.55]
[1733557575233,1.79196369,3987.1,3986.9,0.55]
[1733557575373,2.24685164,3987.1,3986.9,0.55]
[1733557575775,3.54762369,3987.1,3986.9,0.55]
[1733557576080,1.40763047,3987.0,3986.9,0.55]
[1733557576492,3.21347658,3987.0,3986.9,0.55]
[1733557576693,1.75588,3986.6,3986.0,0.8211]
[1733557576878,1.75588,3986.6,3986.1,0.0783696]
[1733557577082,1.75588,3986.6,3985.4,1.75639]
[1733557577083,1.32789128,3986.5,3986.2,0.0783696]
[1733557577272,5.79241785,3986.4,3985.7,0.8211]
[1733557577510,1.04943446,3986.2,3985.8,0.07837309]
[1733557577668,0.86736901,3986.1,3985.7,0.8211]
[1733557577886,1.35069212,3986.1,3985.7,0.8211]
[1733557578085,1.35069212,3986.1,3985.8,0.07838434]
[1733557578329,0.04974774,3986.1,3985.7,0.8211]
[1733557578499,0.04974774,3986.1,3985.8,0.55]
[1733557580299,2.35040751,3986.3,3985.8,0.55]
[1733557580499,0.04972785,3986.0,3985.8,0.55]
[1733557580727,3.32096368,3986.2,3985.8,0.55]
[1733557580891,0.04970795,3985.9,3985.8,0.55]
[1733557581092,3.32096368,3986.2,3985.8,0.55]
[1733557581290,0.04970795,3985.9,3985.8,0.55]
[1733557581630,0.31882484,3985.9,3985.8,0.55]
[1733557581807,0.04939295,3985.9,3985.8,0.55]
[1733557582131,1.80558295,3985.9,3985.8,0.55]
[1733557582285,2.62428295,3985.9,3985.8,0.55]
[1733557582726,3.49114972,3985.9,3985.8,0.55]
[1733557582920,2.62428295,3985.9,3985.8,0.55]
[1733557583238,1.28701161,3985.9,3985.8,0.55]
[1733557585649,3.04320161,3985.9,3985.8,0.55]
[1733557585945,3.90965222,3985.9,3985.8,0.55]
[1733557586345,3.04320161,3985.9,3985.8,0.55]
[1733557588358,3.90931064,3985.9,3985.8,0.55]
[1733557588543,3.04320161,3985.9,3985.8,0.55]
[1733557589058,3.04320161,3985.9,3985.3,0.1]
[1733557589059,1.75641,3985.4,3985.3,0.1]
[1733557589462,1.80517248,3985.4,3985.3,0.1]
[1733557589669,3.48979984,3985.4,3985.3,0.1]
[1733557589826,4.53727727,3985.4,3985.3,0.1]
[1733557590223,5.83560717,3985.4,3985.3,0.1]
[1733557590554,7.34005415,3985.4,3985.3,0.1]
[1733557590856,5.76509539,3985.4,3985.3,0.1]
[1733557591156,7.86504041,3985.4,3985.3,0.1]
[1733557591362,5.76509539,3985.4,3985.3,0.1]
[1733557591559,5.76509539,3985.4,3984.5,0.625]
[1733557591560,1.75676,3984.6,3984.5,0.625]
[1733557591862,2.6236135,3984.6,3984.5,0.625]
[1733557592036,2.88597485,3984.6,3984.5,0.625]
[1733557592936,1.12921485,3984.6,3984.5,0.625]
[1733557593325,2.88597485,3984.6,3984.5,0.625]
[1733557593524,2.88597485,3984.6,3984.5,1.175]
[1733557595357,1.12921485,3984.6,3984.5,1.175]
[1733557595538,0.8668535,3984.6,3984.5,1.175]
[1733557595861,0.0481535,3984.6,3984.5,1.175]
[1733557596073,1.75668,3984.8,3984.6,0.55]
[1733557597266,0.8187,3984.9,3984.6,0.55]
[1733557597444,1.75656,3985.1,3984.6,0.55]
[1733557597628,2.52369837,3985.1,3984.6,0.55]
[1733557597826,1.75659,3985.0,3984.6,0.55]
[1733557598232,1.75659,3985.0,3984.4,0.55]
[1733557598854,0.76713837,3985.1,3984.3,0.7984]
[1733557598855,1.75665,3984.9,3984.3,0.7984]
[1733557599059,1.75665,3984.9,3983.7,1.3484]
[1733557599241,1.75665,3984.9,3983.7,1.658959]
[1733557599872,1.75672,3984.7,3983.7,1.658959]
[1733557600388,1.75662,3985.0,3983.7,1.658959]
[1733557600589,1.75662,3985.0,3983.9,0.55]
[1733557600792,0.76713837,3985.1,3983.9,2.30705]
[1733557600956,3.18197915,3985.2,3984.1,0.55]
[1733557601156,2.585,3985.2,3984.1,0.55]
[1733557601559,1.75655,3985.1,3984.1,0.55]
[1733557601757,0.0481255,3985.1,3984.1,0.55]
[1733557601971,0.8285,3984.6,3983.3,0.55]
[1733557602298,0.8285,3984.6,3983.5,0.55]
[1733557602299,0.36620397,3984.5,3983.5,0.55]